[Event "African Games Rapid Open 2019"]
[Site "Casablanca"]
[Date "2019.08.26"]
[Round "1.1"]
[White "Adly, Ahmed"]
[Black "Mphungu, Gerrard"]
[Result "1-0"]
[ECO "A06"]
[WhiteElo "2636"]
[BlackElo "2107"]
[Annotator "RC"]
[PlyCount "72"]
[EventDate "2019.08.26"]
[EventType "team-tourn"]
[EventCountry "MAR"]
[SourceTitle "playchess.com"]
[Source "ChessBase"]
[SourceQuality "1"]
[TimeControl "900+10"]

1. Nf3 {[%emt 0:00:00]} d5 {[%emt 0:00:00]} 2. e3 {[%emt 0:00:07]} c6 {[%emt 0:00:00]} 3. b3 {[%emt 0:00:06]} Bg4 {[%emt 0:00:39]} 4. Bb2 {[%emt 0:00:05]} Nd7 {[%emt 0:00:13]} 5. h3 {[%emt 0:00:04]} Bh5 {[%emt 0:00:04]} 6. c4 {[%emt 0:00:08]} e6 {[%emt 0:00:01]} 7. Nc3 {[%emt 0:00:24]} Ngf6 {[%emt 0:00:34]} 8. Ne2 {[%emt 0:00:03]} Qa5 {[%emt 0:00:47]} 9. Nf4 {[%emt 0:00:45]} Bxf3 {[%emt 0:00:59]} 10. gxf3 {[%emt 0:00:01]} Ba3 {[%emt 0:00:13]} 11. Qc2 {[%emt 0:00:03]} Bxb2 {[%emt 0:00:17]} 12. Qxb2 {[%emt 0:00:01]} Qc5 {[%emt 0:02:08]} 13. Rg1 {[%emt 0:00:11]} g6 {[%emt 0:01:17]} 14. Rc1 {[%emt 0:00:11]} Qd6 {[%emt 0:01:29]} 15. cxd5 {[%emt 0:00:42]} exd5 {[%emt 0:00:07]} 16. h4 {[%emt 0:00:09]} Qe5 {[%emt 0:00:56]} 17. Qa3 {[%emt 0:00:15]} a5 {[%emt 0:01:18]} 18. Bd3 {[%emt 0:00:57]} Nh5 {[%emt 0:00:52]} 19. Rg5 {[%emt 0:01:24]} Nxf4 {[%emt 0:01:32]} 20. Rxe5+ {[%emt 0:00:01]} Nxe5 {[%emt 0:00:01]} 21. Bf1 {[%emt 0:00:32]} Nfd3+ {[%emt 0:00:12]} 22. Kd1 {[%emt 0:00:12]} Nxc1 {[%emt 0:00:07]} 23. Kxc1 {[%emt 0:00:02]} Kd7 {[%emt 0:01:44]} 24. f4 {[%emt 0:00:37]} Ng4 {[%emt 0:01:17]} 25. f3 {[%emt 0:00:01]} Nh6 {[%emt 0:01:02]} 26. Qb2 {[%emt 0:00:01]} f5 {[%emt 0:00:38]} 27. Qg7+ {[%emt 0:00:02]} Ke6 {[%emt 0:00:27]} 28. Qxh6 {[%emt 0:00:02]} Rag8 {[%emt 0:00:12]} 29. Bh3 {[%emt 0:00:09]} a4 {[%emt 0:00:10]} 30. b4 {[%emt 0:00:05]} Kf6 {[%emt 0:00:28]} 31. Qg5+ {[%emt 0:00:04]} Kf7 {[%emt 0:00:04]} 32. Qh6 {[%emt 0:00:06]} Rg7 {[%emt 0:00:05]} 33. e4 {[%emt 0:00:08]} dxe4 {[%emt 0:00:07]} 34. fxe4 {[%emt 0:00:02]} fxe4 {[%emt 0:00:12]} 35. Be6+ {[%emt 0:00:03]} Kf6 {[%emt 0:00:02]} 36. Bc4 {[%emt 0:00:02]} Rc7 1-0

[Event "African Games Rapid Open 2019"]
[Site "Casablanca"]
[Date "2019.08.26"]
[Round "1.4"]
[White "Beukes, Dante M"]
[Black "Bellahcene, Bilel"]
[Result "0-1"]
[ECO "B30"]
[WhiteElo "2130"]
[BlackElo "2550"]
[Annotator "ChessBase"]
[PlyCount "62"]
[EventDate "2019.08.26"]
[EventType "team-tourn"]
[EventCountry "MAR"]
[SourceTitle "playchess.com"]
[Source "ChessBase"]
[SourceQuality "1"]
[TimeControl "900+10"]

1. e4 {[%emt 0:00:00]} c5 {[%emt 0:00:00]} 2. Nf3 {[%emt 0:00:02]} Nc6 {[%emt 0:00:00]} 3. Bb5 {[%emt 0:00:05]} d6 {[%emt 0:00:00]} 4. O-O {[%emt 0:00:10]} Bd7 {[%emt 0:00:00]} 5. Re1 {[%emt 0:00:08]} Nf6 {[%emt 0:00:00]} 6. c3 a6 7. Bf1 {[%emt 0:00:15]} Bg4 {[%emt 0:00:00]} 8. d3 {[%emt 0:01:07]} e6 {[%emt 0:00:01]} 9. Nbd2 {[%emt 0:00:05]} Be7 {[%emt 0:00:10]} 10. h3 {[%emt 0:00:05]} Bh5 {[%emt 0:00:01]} 11. Be2 {[%emt 0:00:10]} d5 {[%emt 0:00:32]} 12. e5 {[%emt 0:01:59]} Nd7 {[%emt 0:00:01]} 13. d4 {[%emt 0:00:01]} cxd4 {[%emt 0:00:01]} 14. cxd4 {[%emt 0:00:02]} Bg6 {[%emt 0:00:15]} 15. a3 {[%emt 0:01:08]} Rc8 {[%emt 0:02:11]} 16. Nb1 {[%emt 0:00:48]} Na5 {[%emt 0:01:06]} 17. Nc3 {[%emt 0:00:12]} Qb6 {[%emt 0:00:02]} 18. Bd3 {[%emt 0:01:38]} O-O {[%emt 0:00:05]} 19. Bxg6 {[%emt 0:01:40]} fxg6 {[%emt 0:00:03]} 20. Qe2 {[%emt 0:01:23]} Nb3 {[%emt 0:00:11]} 21. Rb1 {[%emt 0:00:11]} Nxd4 {[%emt 0:00:04]} 22. Nxd4 {[%emt 0:00:18]} Qxd4 {[%emt 0:00:02]} 23. Qd2 {[%emt 0:02:19]} Qxd2 {[%emt 0:00:28]} 24. Bxd2 {[%emt 0:00:02]} Bc5 {[%emt 0:00:01]} 25. Re2 {[%emt 0:00:21]} Bd4 {[%emt 0:00:05]} 26. Rbe1 {[%emt 0:00:18]} Rf5 {[%emt 0:00:02]} 27. Nxd5 {[%emt 0:00:38]} exd5 {[%emt 0:00:10]} 28. e6 {[%emt 0:00:01]} Ne5 {[%emt 0:00:34]} 29. Bc3 {[%emt 0:00:11]} Bxc3 {[%emt 0:00:17]} 30. bxc3 {[%emt 0:00:02]} Nc6 {[%emt 0:00:04]} 31. e7 {[%emt 0:00:03]} Re8 {[%emt 0:00:00]} 0-1

[Event "African Games Rapid Open 2019"]
[Site "Casablanca"]
[Date "2019.08.26"]
[Round "1.11"]
[White "Kayonde, Andrew"]
[Black "Rita, Jeorciley"]
[Result "1-0"]
[ECO "D05"]
[WhiteElo "2384"]
[BlackElo "1920"]
[Annotator "ChessBase"]
[PlyCount "63"]
[EventDate "2019.08.26"]
[EventType "team-tourn"]
[EventCountry "MAR"]
[SourceTitle "playchess.com"]
[Source "ChessBase"]
[SourceQuality "1"]
[TimeControl "900+10"]

1. d4 {[%emt 0:00:00]} e6 {[%emt 0:00:00]} 2. Nf3 {[%emt 0:00:00]} Nf6 {[%emt 0:00:00]} 3. e3 {[%emt 0:00:00]} d5 {[%emt 0:00:00]} 4. Bd3 {[%emt 0:00:03]} c5 {[%emt 0:00:08]} 5. O-O {[%emt 0:00:03]} h6 {[%emt 0:00:16]} 6. b3 {[%emt 0:00:04]} Nbd7 {[%emt 0:00:05]} 7. Bb2 {[%emt 0:00:02]} b6 {[%emt 0:00:06]} 8. Ne5 {[%emt 0:00:26]} Bb7 {[%emt 0:00:17]} 9. f4 {[%emt 0:00:22]} Ne4 {[%emt 0:00:24]} 10. Qh5 {[%emt 0:00:50]} Nxe5 {[%emt 0:01:10]} 11. fxe5 {[%emt 0:00:05]} g6 {[%emt 0:01:34]} 12. Bb5+ {[%emt 0:00:05]} Ke7 {[%emt 0:00:02]} 13. Qh4+ {[%emt 0:00:02]} Ng5 {[%emt 0:00:35]} 14. Nd2 {[%emt 0:00:18]} a6 {[%emt 0:00:25]} 15. Nf3 {[%emt 0:00:23]} Bg7 {[%emt 0:00:53]} 16. Nxg5 {[%emt 0:00:11]} hxg5 {[%emt 0:00:01]} 17. Qxg5+ {[%emt 0:00:11]} Kf8 {[%emt 0:00:05]} 18. Qxg6 {[%emt 0:00:08]} Qe7 {[%emt 0:00:27]} 19. Rxf7+ {[%emt 0:00:03]} Qxf7 {[%emt 0:00:05]} 20. Rf1 {[%emt 0:00:01]} Qxf1+ {[%emt 0:00:02]} 21. Bxf1 {[%emt 0:00:02]} Rh6 {[%emt 0:00:23]} 22. Qg5 {[%emt 0:00:06]} Kf7 {[%emt 0:00:25]} 23. Ba3 {[%emt 0:00:15]} Rc8 {[%emt 0:00:39]} 24. Be2 {[%emt 0:00:20]} Rch8 {[%emt 0:01:23]} 25. h3 {[%emt 0:00:36]} Bf8 {[%emt 0:00:16]} 26. Qd8 {[%emt 0:00:21]} Be7 {[%emt 0:01:02]} 27. Qxb6 {[%emt 0:00:05]} Ba8 {[%emt 0:00:22]} 28. Qa7 {[%emt 0:00:05]} Re8 {[%emt 0:00:25]} 29. Bxc5 {[%emt 0:00:02]} Kf8 {[%emt 0:00:04]} 30. Bxe7+ {[%emt 0:00:02]} Rxe7 {[%emt 0:00:03]} 31. Qxa8+ {[%emt 0:00:02]} Kg7 {[%emt 0:00:09]} 32. Qxa6 {[%emt 0:00:02]} 1-0

[Event "African Games Rapid Open 2019"]
[Site "Casablanca"]
[Date "2019.08.26"]
[Round "1.12"]
[White "Espirito Santo, Waldyr"]
[Black "Chumfwa, Stanley"]
[Result "0-1"]
[ECO "B90"]
[WhiteElo "1923"]
[BlackElo "2317"]
[Annotator "NA"]
[PlyCount "50"]
[EventDate "2019.08.26"]
[EventType "team-tourn"]
[EventCountry "MAR"]
[SourceTitle "playchess.com"]
[Source "ChessBase"]
[SourceQuality "1"]
[TimeControl "900+10"]

1. e4 {[%emt 0:00:00]} c5 {[%emt 0:00:00]} 2. Nf3 {[%emt 0:00:00]} d6 {[%emt 0:00:00]} 3. d4 {[%emt 0:00:00]} cxd4 {[%emt 0:00:00]} 4. Nxd4 {[%emt 0:00:00]} Nf6 {[%emt 0:00:00]} 5. Nc3 {[%emt 0:00:02]} a6 {[%emt 0:00:00]} 6. f3 {[%emt 0:00:08]} e5 {[%emt 0:00:06]} 7. Nb3 {[%emt 0:00:05]} Be7 {[%emt 0:00:03]} 8. Be3 {[%emt 0:00:02]} O-O {[%emt 0:00:03]} 9. Qd2 {[%emt 0:00:04]} Be6 {[%emt 0:00:02]} 10. Be2 {[%emt 0:00:20]} b5 {[%emt 0:00:50]} 11. a3 {[%emt 0:00:34]} Nbd7 {[%emt 0:00:50]} 12. Rd1 {[%emt 0:00:37]} Qc7 {[%emt 0:00:07]} 13. O-O {[%emt 0:00:14]} Rac8 {[%emt 0:00:07]} 14. Rc1 {[%emt 0:00:37]} Rfd8 {[%emt 0:00:22]} 15. Rfd1 {[%emt 0:00:04]} Nb6 {[%emt 0:00:14]} 16. Na5 {[%emt 0:00:42]} d5 {[%emt 0:00:15]} 17. exd5 {[%emt 0:00:16]} Nbxd5 {[%emt 0:00:06]} 18. Nxd5 {[%emt 0:00:33]} Nxd5 {[%emt 0:00:03]} 19. b4 {[%emt 0:00:09]} Nc3 {[%emt 0:00:18]} 20. Bd3 {[%emt 0:00:27]} Nxd1 {[%emt 0:00:03]} 21. Rxd1 Bc4 {[%emt 0:01:30]} 22. Qf2 {[%emt 0:00:18]} Bxd3 {[%emt 0:00:01]} 23. Bb6 {[%emt 0:01:26]} Qxc2 {[%emt 0:00:02]} 24. Qxc2 {[%emt 0:00:16]} Bxc2 {[%emt 0:00:06]} 25. Rxd8+ {[%emt 0:00:30]} Bxd8 {[%emt 0:00:08]} 0-1

[Event "African Games Rapid Open 2019"]
[Site "Casablanca"]
[Date "2019.08.26"]
[Round "1.15"]
[White "Osunfuyi, Abimbola"]
[Black "Hassan, Abderrahmane"]
[Result "1-0"]
[ECO "A10"]
[WhiteElo "2235"]
[BlackElo "1786"]
[Annotator "NA"]
[PlyCount "53"]
[EventDate "2019.08.26"]
[EventType "team-tourn"]
[EventCountry "MAR"]
[SourceTitle "playchess.com"]
[Source "ChessBase"]
[SourceQuality "1"]
[TimeControl "900+10"]

1. c4 {[%emt 0:00:00]} f5 {[%emt 0:00:00]} 2. g3 {[%emt 0:00:02]} Nf6 {[%emt 0:00:00]} 3. Bg2 {[%emt 0:00:20]} d6 {[%emt 0:00:00]} 4. Nc3 {[%emt 0:00:12]} e5 {[%emt 0:00:04]} 5. d3 {[%emt 0:00:03]} Be7 {[%emt 0:00:01]} 6. e4 {[%emt 0:00:39]} c6 {[%emt 0:02:25]} 7. Nge2 {[%emt 0:00:04]} O-O {[%emt 0:01:50]} 8. O-O {[%emt 0:00:04]} Qe8 {[%emt 0:00:19]} 9. Rb1 {[%emt 0:00:32]} Qh5 {[%emt 0:00:35]} 10. f3 {[%emt 0:00:07]} f4 {[%emt 0:01:39]} 11. gxf4 {[%emt 0:00:43]} Bh3 {[%emt 0:00:05]} 12. Ng3 {[%emt 0:01:01]} Qh4 {[%emt 0:00:23]} 13. f5 {[%emt 0:00:04]} Bxg2 {[%emt 0:01:18]} 14. Kxg2 {[%emt 0:00:03]} Nbd7 {[%emt 0:00:24]} 15. Be3 {[%emt 0:00:10]} Nh5 {[%emt 0:00:23]} 16. Nxh5 {[%emt 0:00:12]} Qxh5 {[%emt 0:00:02]} 17. f4 {[%emt 0:00:15]} Qh4 {[%emt 0:01:35]} 18. Rf3 {[%emt 0:00:19]} exf4 {[%emt 0:00:41]} 19. Rxf4 {[%emt 0:00:36]} Qg5+ {[%emt 0:00:11]} 20. Kh1 {[%emt 0:00:04]} Ne5 {[%emt 0:00:41]} 21. Qe2 {[%emt 0:00:05]} Qh6 {[%emt 0:03:35]} 22. Rg4 {[%emt 0:01:33]} Qh3 {[%emt 0:00:12]} 23. Rg3 {[%emt 0:00:06]} Qh4 {[%emt 0:00:57]} 24. d4 {[%emt 0:00:21]} Nd7 {[%emt 0:00:31]} 25. Rbg1 {[%emt 0:00:02]} Bf6 {[%emt 0:00:18]} 26. Qg2 {[%emt 0:00:08]} Rf7 {[%emt 0:00:20]} 27. Rh3 1-0

[Event "African Games Rapid Open 2019"]
[Site "Casablanca"]
[Date "2019.08.26"]
[Round "1.18"]
[White "Asante Debesai Zerabruk"]
[Black "Wanyama, Harold"]
[Result "1/2-1/2"]
[ECO "B43"]
[WhiteElo "1712"]
[BlackElo "2293"]
[Annotator "NA"]
[PlyCount "56"]
[EventDate "2019.08.26"]
[EventType "team-tourn"]
[EventCountry "MAR"]
[SourceTitle "playchess.com"]
[Source "ChessBase"]
[SourceQuality "1"]
[TimeControl "900+10"]

1. e4 {[%emt 0:00:00]} c5 {[%emt 0:00:00]} 2. Nf3 {[%emt 0:00:00]} e6 {[%emt 0:00:00]} 3. d4 {[%emt 0:00:00]} cxd4 {[%emt 0:00:00]} 4. Nxd4 {[%emt 0:00:00]} a6 {[%emt 0:00:01]} 5. Nc3 {[%emt 0:00:00]} Qc7 {[%emt 0:00:01]} 6. Be2 {[%emt 0:00:14]} Bb4 {[%emt 0:00:03]} 7. Bd2 {[%emt 0:00:09]} Nf6 {[%emt 0:00:02]} 8. Bd3 {[%emt 0:01:15]} O-O {[%emt 0:00:23]} 9. a3 {[%emt 0:00:05]} Bc5 {[%emt 0:00:30]} 10. Nb3 {[%emt 0:00:45]} Ba7 {[%emt 0:00:04]} 11. O-O {[%emt 0:00:19]} Nc6 {[%emt 0:00:17]} 12. Ne2 {[%emt 0:01:22]} Ne5 {[%emt 0:00:11]} 13. Bg5 {[%emt 0:01:44]} d6 {[%emt 0:00:14]} 14. Ng3 {[%emt 0:00:55]} Nfd7 {[%emt 0:01:11]} 15. h3 {[%emt 0:00:44]} b5 {[%emt 0:00:22]} 16. Kh2 {[%emt 0:00:24]} Bb7 {[%emt 0:00:09]} 17. f4 {[%emt 0:01:11]} Nxd3 {[%emt 0:00:29]} 18. cxd3 {[%emt 0:00:02]} Rfe8 {[%emt 0:00:15]} 19. Rc1 {[%emt 0:00:25]} Qb6 {[%emt 0:00:03]} 20. f5 {[%emt 0:00:56]} Rac8 {[%emt 0:00:11]} 21. f6 {[%emt 0:00:58]} g6 {[%emt 0:00:13]} 22. h4 {[%emt 0:00:05]} d5 {[%emt 0:00:09]} 23. h5 {[%emt 0:00:29]} Bb8 {[%emt 0:00:04]} 24. hxg6 {[%emt 0:00:40]} hxg6 {[%emt 0:00:02]} 25. Qg4 {[%emt 0:00:20]} Rxc1 {[%emt 0:00:18]} 26. Rxc1 {[%emt 0:00:35]} Qf2 {[%emt 0:00:30]} 27. Qh4 {[%emt 0:01:20]} dxe4 {[%emt 0:01:40]} 28. Rf1 {[%emt 0:02:39]} Qxf1 {[%emt 0:00:41]} 1/2-1/2

[Event "African Games Rapid Open 2019"]
[Site "Casablanca"]
[Date "2019.08.26"]
[Round "2.3"]
[White "Silva, David"]
[Black "Hamdouchi, Hicham"]
[Result "0-1"]
[ECO "B30"]
[WhiteElo "2239"]
[BlackElo "2562"]
[Annotator "ChessBase"]
[PlyCount "139"]
[EventDate "2019.08.26"]
[EventType "team-tourn"]
[EventCountry "MAR"]
[SourceTitle "playchess.com"]
[Source "ChessBase"]
[SourceQuality "1"]
[TimeControl "900+10"]

1. e4 {[%emt 0:00:00]} c5 {[%emt 0:00:00]} 2. Nf3 {[%emt 0:00:00]} Nc6 {[%emt 0:00:00]} 3. Bb5 {[%emt 0:01:45]} e6 {[%emt 0:00:02]} 4. Bxc6 {[%emt 0:00:06]} bxc6 {[%emt 0:00:01]} 5. O-O {[%emt 0:00:03]} Ne7 {[%emt 0:00:12]} 6. d3 {[%emt 0:00:23]} Ng6 {[%emt 0:00:25]} 7. Ng5 {[%emt 0:00:03]} f6 {[%emt 0:01:35]} 8. Nh3 {[%emt 0:00:03]} d5 {[%emt 0:00:02]} 9. Nc3 {[%emt 0:00:05]} Bd6 {[%emt 0:00:19]} 10. f4 {[%emt 0:00:08]} O-O {[%emt 0:00:05]} 11. Na4 {[%emt 0:01:03]} c4 {[%emt 0:00:38]} 12. dxc4 {[%emt 0:00:06]} dxe4 {[%emt 0:01:42]} 13. Be3 {[%emt 0:00:23]} Qe7 {[%emt 0:00:02]} 14. Qh5 {[%emt 0:02:20]} Rd8 {[%emt 0:01:10]} 15. Rad1 {[%emt 0:00:20]} Ba6 {[%emt 0:04:29]} 16. b3 {[%emt 0:00:09]} f5 {[%emt 0:00:28]} 17. Rd2 {[%emt 0:02:03]} Bb4 {[%emt 0:01:12]} 18. Rxd8+ {[%emt 0:00:12]} Rxd8 {[%emt 0:00:01]} 19. Rd1 {[%emt 0:00:08]} Bd6 {[%emt 0:01:05]} 20. Qg5 {[%emt 0:04:42]} Qc7 {[%emt 0:01:05]} 21. Qh5 {[%emt 0:00:05]} Be7 {[%emt 0:01:47]} 22. Qe2 {[%emt 0:00:46]} Rxd1+ {[%emt 0:01:22]} 23. Qxd1 {[%emt 0:00:04]} c5 {[%emt 0:00:02]} 24. Qd2 {[%emt 0:00:14]} Nf8 {[%emt 0:00:02]} 25. Nf2 {[%emt 0:00:36]} Nd7 {[%emt 0:00:22]} 26. Nd1 {[%emt 0:00:47]} Bb7 {[%emt 0:00:01]} 27. Ndc3 {[%emt 0:00:03]} a6 {[%emt 0:00:01]} 28. Ne2 {[%emt 0:00:15]} h6 {[%emt 0:00:04]} 29. a3 {[%emt 0:00:07]} Bc6 {[%emt 0:00:07]} 30. Nec3 {[%emt 0:00:15]} Bd6 {[%emt 0:00:19]} 31. Qf2 {[%emt 0:00:17]} Bb7 {[%emt 0:00:30]} 32. Qd2 {[%emt 0:00:15]} Kh7 {[%emt 0:00:03]} 33. Qf2 {[%emt 0:00:10]} Kg8 {[%emt 0:00:20]} 34. Qd2 {[%emt 0:00:02]} Kf7 {[%emt 0:00:03]} 35. Qf2 {[%emt 0:00:04]} Kf8 {[%emt 0:00:43]} 36. Qd2 {[%emt 0:00:07]} Ke7 {[%emt 0:00:20]} 37. Qf2 {[%emt 0:00:05]} Kf7 {[%emt 0:00:14]} 38. Qd2 {[%emt 0:00:04]} g5 {[%emt 0:00:08]} 39. g3 {[%emt 0:00:07]} gxf4 {[%emt 0:00:02]} 40. gxf4 {[%emt 0:00:01]} Nf6 {[%emt 0:00:20]} 41. h3 {[%emt 0:00:09]} Nh5 {[%emt 0:00:03]} 42. Ne2 {[%emt 0:00:02]} Nf6 {[%emt 0:00:16]} 43. Qe1 {[%emt 0:00:17]} Nd7 {[%emt 0:00:10]} 44. Qh4 {[%emt 0:00:02]} Bf8 {[%emt 0:00:05]} 45. Qh5+ {[%emt 0:00:02]} Ke7 {[%emt 0:00:04]} 46. Qg6 {[%emt 0:00:09]} Qd6 {[%emt 0:00:12]} 47. Kf2 {[%emt 0:00:17]} Kd8 {[%emt 0:00:01]} 48. Nac3 {[%emt 0:00:26]} Kc7 {[%emt 0:00:02]} 49. Qh7 {[%emt 0:00:08]} Bc6 {[%emt 0:00:17]} 50. b4 {[%emt 0:00:35]} cxb4 {[%emt 0:00:07]} 51. c5 {[%emt 0:00:02]} Qe7 {[%emt 0:00:01]} 52. Qxe7 {[%emt 0:00:02]} Bxe7 {[%emt 0:00:01]} 53. axb4 {[%emt 0:00:01]} Nf6 {[%emt 0:00:33]} 54. Nd4 {[%emt 0:00:17]} Bd7 {[%emt 0:00:01]} 55. b5 {[%emt 0:00:59]} axb5 {[%emt 0:00:07]} 56. Ncxb5+ {[%emt 0:00:02]} Bxb5 {[%emt 0:00:14]} 57. Nxb5+ {[%emt 0:00:01]} Kd7 {[%emt 0:00:18]} 58. c4 {[%emt 0:00:06]} Nh5 {[%emt 0:00:17]} 59. Nd4 {[%emt 0:00:28]} Bxc5 {[%emt 0:00:19]} 60. Nxf5 {[%emt 0:00:05]} exf5 {[%emt 0:00:02]} 61. Bxc5 {[%emt 0:00:13]} Nxf4 {[%emt 0:00:01]} 62. Kg3 {[%emt 0:00:07]} Ng6 {[%emt 0:00:24]} 63. Be3 {[%emt 0:00:03]} h5 {[%emt 0:00:01]} 64. h4 {[%emt 0:00:02]} Ke6 {[%emt 0:00:04]} 65. Bh6 {[%emt 0:00:10]} Kd6 {[%emt 0:00:10]} 66. Be3 {[%emt 0:00:35]} Ke5 {[%emt 0:00:03]} 67. Bg5 {[%emt 0:00:01]} f4+ {[%emt 0:00:12]} 68. Kf2 {[%emt 0:00:10]} Kd4 {[%emt 0:00:02]} 69. c5 {[%emt 0:00:04]} Kxc5 {[%emt 0:00:13]} 70. Ke1 0-1

[Event "African Games Rapid Open 2019"]
[Site "Casablanca"]
[Date "2019.08.26"]
[Round "2.4"]
[White "Bellahcene, Bilel"]
[Black "Osunfuyi, Abimbola"]
[Result "1-0"]
[ECO "B90"]
[WhiteElo "2550"]
[BlackElo "2235"]
[Annotator "ChessBase"]
[PlyCount "67"]
[EventDate "2019.08.26"]
[EventType "team-tourn"]
[EventCountry "MAR"]
[SourceTitle "playchess.com"]
[Source "ChessBase"]
[SourceQuality "1"]
[TimeControl "900+10"]

1. e4 {[%emt 0:00:00]} c5 {[%emt 0:00:00]} 2. Nf3 {[%emt 0:00:00]} d6 {[%emt 0:00:00]} 3. d4 {[%emt 0:00:00]} cxd4 {[%emt 0:00:00]} 4. Nxd4 {[%emt 0:00:00]} Nf6 {[%emt 0:00:00]} 5. Nc3 {[%emt 0:00:00]} a6 {[%emt 0:00:00]} 6. h4 {[%emt 0:00:00]} e5 {[%emt 0:00:05]} 7. Nb3 {[%emt 0:00:00]} Be7 {[%emt 0:00:13]} 8. Be2 {[%emt 0:00:03]} Be6 {[%emt 0:00:28]} 9. Bf3 {[%emt 0:00:02]} Nbd7 {[%emt 0:00:13]} 10. g4 {[%emt 0:00:18]} Nb6 {[%emt 0:00:19]} 11. g5 {[%emt 0:00:06]} Nfd7 {[%emt 0:00:03]} 12. Bg4 {[%emt 0:00:04]} Rc8 {[%emt 0:00:55]} 13. Bxe6 {[%emt 0:00:26]} fxe6 {[%emt 0:00:01]} 14. Qh5+ {[%emt 0:00:08]} g6 {[%emt 0:00:11]} 15. Qg4 {[%emt 0:00:01]} Kf7 {[%emt 0:00:12]} 16. f4 {[%emt 0:00:19]} Qg8 {[%emt 0:00:22]} 17. Rf1 {[%emt 0:01:37]} Ke8 {[%emt 0:00:08]} 18. fxe5 {[%emt 0:00:31]} Nxe5 {[%emt 0:00:12]} 19. Qh3 {[%emt 0:00:07]} h6 {[%emt 0:00:08]} 20. gxh6 {[%emt 0:00:04]} g5 {[%emt 0:00:02]} 21. hxg5 {[%emt 0:00:04]} Kd7 {[%emt 0:00:06]} 22. Nd5 {[%emt 0:00:12]} Nxd5 {[%emt 0:00:51]} 23. exd5 {[%emt 0:00:02]} Rxc2 {[%emt 0:00:04]} 24. Nd4 {[%emt 0:00:26]} Rc4 {[%emt 0:00:23]} 25. Qxe6+ {[%emt 0:00:07]} Qxe6 {[%emt 0:00:07]} 26. dxe6+ {[%emt 0:00:01]} Kc7 {[%emt 0:00:12]} 27. Be3 {[%emt 0:00:05]} Bxg5 {[%emt 0:00:24]} 28. Bxg5 {[%emt 0:00:28]} Rxd4 {[%emt 0:00:07]} 29. Rc1+ {[%emt 0:00:08]} Kb8 {[%emt 0:00:04]} 30. e7 {[%emt 0:01:08]} Nd7 {[%emt 0:01:46]} 31. Rc2 {[%emt 0:01:21]} Rd5 {[%emt 0:00:36]} 32. Re2 {[%emt 0:00:22]} Re8 {[%emt 0:00:23]} 33. h7 {[%emt 0:00:07]} Rxg5 {[%emt 0:00:17]} 34. Rf8 {[%emt 0:00:05]} 1-0

[Event "African Games Rapid Open 2019"]
[Site "Casablanca"]
[Date "2019.08.26"]
[Round "2.5"]
[White "Wanyama, Harold"]
[Black "Arab, Adlane"]
[Result "1/2-1/2"]
[ECO "A30"]
[WhiteElo "2293"]
[BlackElo "2485"]
[Annotator "ChessBase"]
[PlyCount "108"]
[EventDate "2019.08.26"]
[EventType "team-tourn"]
[EventCountry "MAR"]
[SourceTitle "playchess.com"]
[Source "ChessBase"]
[SourceQuality "1"]
[TimeControl "900+10"]

1. c4 {[%emt 0:00:00]} c5 {[%emt 0:00:00]} 2. Nf3 {[%emt 0:00:00]} Nc6 {[%emt 0:00:00]} 3. g3 {[%emt 0:00:00]} g6 {[%emt 0:00:00]} 4. Bg2 {[%emt 0:00:06]} Bg7 {[%emt 0:00:00]} 5. O-O {[%emt 0:00:02]} d6 {[%emt 0:00:05]} 6. Nc3 {[%emt 0:00:03]} e6 {[%emt 0:00:05]} 7. e4 {[%emt 0:00:05]} Nge7 {[%emt 0:00:08]} 8. b3 {[%emt 0:00:10]} O-O {[%emt 0:00:05]} 9. Bb2 {[%emt 0:00:00]} a6 {[%emt 0:00:06]} 10. Rc1 {[%emt 0:00:03]} b5 {[%emt 0:00:18]} 11. d3 {[%emt 0:00:10]} Rb8 {[%emt 0:00:17]} 12. Qd2 {[%emt 0:00:18]} e5 {[%emt 0:00:13]} 13. Nd5 {[%emt 0:00:32]} Nxd5 {[%emt 0:00:12]} 14. cxd5 {[%emt 0:00:10]} Ne7 {[%emt 0:00:11]} 15. Ne1 {[%emt 0:00:02]} a5 {[%emt 0:01:05]} 16. f4 {[%emt 0:00:04]} f6 {[%emt 0:00:11]} 17. Kh1 {[%emt 0:00:27]} Ra8 {[%emt 0:00:17]} 18. a4 {[%emt 0:00:09]} Bd7 {[%emt 0:00:18]} 19. Ra1 {[%emt 0:00:18]} Qb6 {[%emt 0:00:18]} 20. axb5 {[%emt 0:00:38]} Qxb5 {[%emt 0:00:10]} 21. Bc3 {[%emt 0:00:01]} Qxb3 {[%emt 0:00:50]} 22. Nc2 {[%emt 0:00:02]} Rfb8 {[%emt 0:00:23]} 23. fxe5 {[%emt 0:00:16]} fxe5 {[%emt 0:00:16]} 24. Bxa5 {[%emt 0:00:14]} Qb7 {[%emt 0:01:10]} 25. Na3 {[%emt 0:00:21]} Ra6 {[%emt 0:01:21]} 26. Nc4 {[%emt 0:00:41]} Qa7 {[%emt 0:00:04]} 27. Bc3 {[%emt 0:00:21]} Rxa1 {[%emt 0:00:16]} 28. Bxa1 {[%emt 0:00:21]} Qa6 {[%emt 0:00:05]} 29. Qg5 Re8 {[%emt 0:00:22]} 30. Bb2 {[%emt 0:00:22]} h6 {[%emt 0:00:07]} 31. Qd2 {[%emt 0:00:06]} Rb8 {[%emt 0:00:12]} 32. h4 {[%emt 0:00:14]} Nc8 {[%emt 0:01:05]} 33. Qf2 {[%emt 0:00:12]} Be8 {[%emt 0:00:26]} 34. Bh3 {[%emt 0:00:03]} Kh8 {[%emt 0:00:24]} 35. Ra1 {[%emt 0:01:54]} Qb7 {[%emt 0:00:08]} 36. Kg2 {[%emt 0:00:55]} Bd7 {[%emt 0:00:10]} 37. Bxd7 {[%emt 0:02:26]} Qxd7 {[%emt 0:00:02]} 38. Qf3 {[%emt 0:00:05]} Nb6 {[%emt 0:00:15]} 39. Nxb6 {[%emt 0:00:59]} Rxb6 {[%emt 0:00:01]} 40. Ra8+ {[%emt 0:00:03]} Kh7 {[%emt 0:00:03]} 41. Bc1 {[%emt 0:00:13]} Rb1 {[%emt 0:00:18]} 42. Be3 {[%emt 0:00:12]} Rb2+ {[%emt 0:01:26]} 43. Bf2 {[%emt 0:00:03]} h5 {[%emt 0:00:06]} 44. Qd1 {[%emt 0:00:53]} Qf7 {[%emt 0:00:51]} 45. Qf3 {[%emt 0:00:52]} Qb7 {[%emt 0:00:03]} 46. Re8 {[%emt 0:00:18]} Qd7 {[%emt 0:00:39]} 47. Re6 {[%emt 0:00:04]} Rb8 {[%emt 0:00:11]} 48. g4 {[%emt 0:00:22]} Rf8 {[%emt 0:00:21]} 49. Qg3 {[%emt 0:00:05]} Rf6 {[%emt 0:00:46]} 50. gxh5 {[%emt 0:02:23]} Rxe6 {[%emt 0:00:12]} 51. dxe6 {[%emt 0:00:02]} Qxe6 {[%emt 0:00:01]} 52. hxg6+ {[%emt 0:00:04]} Qxg6 {[%emt 0:00:01]} 53. Kh3 {[%emt 0:00:01]} Qf7 {[%emt 0:00:23]} 54. Kg2 {[%emt 0:00:15]} c4 {[%emt 0:00:19]} 1/2-1/2